bitfinex/quotes_SOLUSD_20220118
["timestamp","ask_amount","ask_price","bid_price","bid_amount"]
[1642485769936,2.0389345,139.52,139.47,24.35664075]
[1642485770138,2.0389345,139.52,139.47,30.14664075]
[1642485770436,2.0389345,139.52,139.47,30.40664075]
[1642485770638,2.0389345,139.52,139.49,10.7484]
[1642485770834,2.0389345,139.52,139.5,0.25]
[1642485771035,2.0389345,139.52,139.5,3.117]
[1642485771234,2.0389345,139.52,139.51,6.0643]
[1642485771638,2.0389345,139.54,139.51,12.3143]
[1642485771837,2.0389345,139.54,139.52,0.25]
[1642485772739,2.0389345,139.54,139.53,6.0643]
[1642485772967,6.94781869,139.57,139.53,6.0643]
[1642485773138,6.94781869,139.57,139.54,0.25]
[1642485774144,6.94781869,139.57,139.5,0.25]
[1642485774542,78.74781869,139.57,139.5,0.25]
[1642485774742,89.49841869,139.57,139.49,8.866]
[1642485774941,89.49841869,139.57,139.49,6.0]
[1642485774942,0.25,139.56,139.49,6.0]
[1642485775143,39.170104,139.54,139.49,6.0]
[1642485775345,2.867,139.53,139.45,33.2168]
[1642485775542,2.867,139.53,139.45,27.2168]
[1642485775744,2.867,139.53,139.45,33.2168]
[1642485776144,2.867,139.53,139.46,0.25]
[1642485777546,13.6208,139.53,139.46,0.25]
[1642485778649,23.8508,139.53,139.46,0.25]
[1642485778850,23.8508,139.53,139.43,2.867]
[1642485779149,23.8508,139.53,139.42,4.7602197]
[1642485779150,10.7564,139.5,139.42,4.7602197]
[1642485779349,48.61575493,139.49,139.42,1.8932197]
[1642485779551,48.61575493,139.49,139.42,4.7612197]
[1642485780250,25.6965,139.5,139.4,4.7612197]
[1642485780480,10.7567,139.49,139.4,4.7612197]
[1642485780679,10.7567,139.49,139.4,10.7612197]
[1642485780878,10.7567,139.49,139.41,0.25]
[1642485781079,25.6965,139.5,139.42,2.868]
[1642485781280,68.90114171,139.5,139.43,0.25]
[1642485782480,25.6965,139.5,139.43,0.25]
[1642485783883,22.8285,139.5,139.43,0.25]
[1642485787284,22.8285,139.5,139.43,11.0043]
[1642485787585,22.8285,139.5,139.43,17.0043]
[1642485788487,2.04298781,139.49,139.43,17.0043]
[1642485789688,2.04298781,139.49,139.44,2.868]
[1642485789886,2.04298781,139.49,139.45,0.25]
[1642485793392,2.04298781,139.48,139.45,0.25]
[1642485793590,2.04298781,139.48,139.41,3.118]
[1642485793890,2.04298781,139.48,139.41,9.118]
[1642485794290,2.04298781,139.48,139.41,19.8739]
[1642485794894,2.04298781,139.48,139.41,20.1339]
[1642485795690,2.04298781,139.48,139.41,21.42007472]
[1642485795901,2.04298781,139.5,139.41,23.31329442]
[1642485796193,2.04298781,139.5,139.41,46.3045197]
[1642485796390,2.04298781,139.5,139.41,47.59069442]
[1642485796795,2.04298781,139.5,139.41,46.3045197]
[1642485796996,2.04298781,139.5,139.41,47.59069442]
[1642485797796,2.04298781,139.5,139.41,47.33069442]
[1642485798000,2.04298781,139.5,139.41,46.0445197]
[1642485798595,4.91098781,139.5,139.41,46.0445197]
[1642485798796,2.04298781,139.49,139.41,44.1513]
[1642485798999,2.04298781,139.49,139.41,43.9013]
[1642485800000,25.83248781,139.49,139.41,43.9013]
[1642485800401,25.83248781,139.49,139.42,0.25]
[1642485800802,25.83248781,139.49,139.41,13.6239]
[1642485801003,25.83248781,139.49,139.4,1.8932197]
[1642485801004,35.21336087,139.47,139.4,1.8932197]
[1642485801204,2.868,139.46,139.4,1.8932197]
[1642485801402,21.361,139.46,139.4,1.8932197]
[1642485802002,21.361,139.46,139.38,10.7585]
[1642485802204,12.27298781,139.46,139.37,1.8932197]
[1642485802404,12.27298781,139.46,139.38,1.28299485]
[1642485802802,2.04298781,139.46,139.38,7.54299485]
[1642485803201,2.04298781,139.46,139.39,12.04069485]
[1642485803402,2.04298781,139.46,139.39,18.55069485]
[1642485803606,2.04298781,139.46,139.4,1.28299485]
[1642485803803,2.04298781,139.47,139.41,0.25]
[1642485804204,2.04298781,139.47,139.41,1.53299485]
[1642485804404,2.04298781,139.47,139.41,7.53299485]
[1642485804904,25.83248781,139.49,139.41,18.54739485]
[1642485805105,25.83248781,139.49,139.42,2.868]
[1642485805306,25.83248781,139.49,139.43,0.25]
[1642485806510,25.83248781,139.49,139.43,11.0042]
[1642485809732,2.04298781,139.49,139.43,17.2642]
[1642485809931,2.04298781,139.49,139.45,10.752]
[1642485810333,2.04298781,139.49,139.46,0.25]
[1642485810534,2.04298781,139.5,139.47,8.9313]
[1642485810934,2.04298781,139.5,139.48,0.25]
[1642485811535,2.04298781,139.52,139.48,0.25]
[1642485812334,2.04298781,139.53,139.48,0.25]
[1642485812533,2.04298781,139.53,139.48,11.0005]
[1642485814938,2.04298781,139.52,139.48,11.0005]
[1642485816141,41.10450763,139.51,139.48,11.0005]
[1642485816544,41.10450763,139.51,139.48,0.25]
[1642485816945,41.10450763,139.51,139.47,0.25]
[1642485817546,43.14749544,139.51,139.47,0.25]
[1642485818746,43.14749544,139.51,139.47,11.0018]
[1642485818949,43.14749544,139.51,139.47,10.7518]
[1642485819149,2.04298781,139.51,139.48,0.25]
[1642485819546,2.04298781,139.51,139.49,6.0643]
[1642485819747,2.04298781,139.51,139.5,0.25]
[1642485819945,2.04298781,139.52,139.5,0.25]
[1642485820947,2.04298781,139.52,139.48,0.25]
[1642485822348,2.04298781,139.51,139.46,0.25]
[1642485824550,2.04298781,139.52,139.46,11.0026]
[1642485826153,2.04298781,139.51,139.46,11.0026]
[1642485827951,2.04298781,139.52,139.46,11.0026]
[1642485828753,2.04298781,139.52,139.46,17.0026]
[1642485831355,2.04298781,139.52,139.47,13.6186]
[1642485831759,2.04298781,139.52,139.48,0.25]
[1642485832256,24.9663,139.53,139.48,0.25]
[1642485832257,27.00928781,139.53,139.48,0.25]
[1642485832661,27.00928781,139.53,139.48,11.0011]
[1642485834190,27.00928781,139.53,139.48,17.0011]
[1642485834391,2.04298781,139.53,139.48,17.0011]
[1642485834590,2.04298781,139.53,139.48,18.545332]
[1642485835991,2.04298781,139.53,139.5,10.7478]
[1642485836194,2.04298781,139.53,139.51,8.9313]
[1642485836392,2.04298781,139.56,139.52,0.25]
[1642485836591,2.04298781,139.56,139.53,2.866]
[1642485836890,2.04298781,139.56,139.54,0.25]
[1642485837091,2.04298781,139.56,139.54,10.995]
[1642485837293,2.04298781,139.56,139.54,16.995]
[1642485837691,6.1238065,139.59,139.54,17.255]
[1642485837893,2.04298781,139.59,139.54,17.255]
[1642485839091,2.04298781,139.6,139.54,17.255]
[1642485839290,1.54298781,139.6,139.54,17.255]
[1642485839891,2.865,139.61,139.54,17.255]
[1642485840093,2.865,139.61,139.54,16.995]
[1642485842496,25.5116,139.62,139.54,16.995]
[1642485842896,25.5116,139.62,139.54,16.745]
[1642485844298,25.5116,139.62,139.55,0.25]
[1642485845300,25.5116,139.62,139.54,16.745]
[1642485846601,22.6466,139.62,139.55,3.115]
[1642485846800,22.6466,139.62,139.55,13.8595]
[1642485848401,22.6466,139.62,139.55,19.8595]
[1642485848603,22.6466,139.62,139.55,16.9945]
[1642485851607,22.6466,139.62,139.55,17.2545]
[1642485851805,48.41955822,139.63,139.56,2.865]
[1642485852004,4.08081869,139.64,139.58,10.7414]
[1642485852410,4.08081869,139.64,139.59,0.25]
[1642485853214,47.76676536,139.65,139.59,0.25]
[1642485853411,47.76676536,139.65,139.58,0.25]
[1642485853712,50.63176536,139.65,139.58,0.25]
[1642485853912,50.63176536,139.65,139.57,0.25]
[1642485854713,50.63176536,139.65,139.57,10.9925]
[1642485854911,50.63176536,139.65,139.57,16.9925]
[1642485855112,50.63176536,139.65,139.57,10.9925]
[1642485855311,50.63176536,139.65,139.57,16.9925]
[1642485855915,50.63176536,139.65,139.57,10.9925]
[1642485855916,54.71258405,139.65,139.57,10.9925]
[1642485856113,51.84758405,139.65,139.57,11.2525]
[1642485856312,51.84758405,139.65,139.57,17.2525]
[1642485857013,4.08081869,139.65,139.57,17.2525]
[1642485857213,6.94581869,139.66,139.57,17.2525]
[1642485857414,10.08081869,139.66,139.57,17.2525]
[1642485857614,4.08081869,139.66,139.57,17.2525]
[1642485858018,10.08081869,139.66,139.57,17.2525]
[1642485858217,4.08081869,139.66,139.57,17.2525]
[1642485858414,6.0,139.66,139.57,25.0765]
[1642485858614,30.51010578,139.67,139.58,71.8]
[1642485858815,30.51010578,139.67,139.6,82.5394]
[1642485859243,30.51010578,139.67,139.61,0.25]
[1642485859443,30.51010578,139.67,139.61,3.114]
[1642485859845,30.51010578,139.67,139.61,9.374]
[1642485860448,26.42928709,139.67,139.61,9.374]
[1642485860648,26.42928709,139.67,139.62,10.739]
[1642485860850,26.42928709,139.67,139.63,0.25]
[1642485861348,0.18040667,139.67,139.63,72.05]
[1642485861746,0.18040667,139.67,139.63,78.31]
[1642485862350,0.18040667,139.67,139.63,89.0483]
[1642485862549,0.18040667,139.67,139.64,2.864]
[1642485862952,0.18040667,139.67,139.65,0.25]
[1642485863650,0.18040667,139.67,139.65,10.9862]
[1642485863851,0.18040667,139.67,139.65,17.2462]
[1642485864052,0.18040667,139.67,139.66,6.0643]
[1642485864253,0.18040667,139.67,139.66,12.3143]
[1642485865355,0.18040667,139.67,139.66,6.3143]
[1642485870759,0.18040667,139.67,139.66,9.1773]
[1642485870962,0.18040667,139.67,139.66,15.1773]
[1642485871159,0.18040667,139.67,139.66,87.2373]
[1642485871360,6.94381869,139.72,139.66,88.52219281]
[1642485871559,2.863,139.72,139.67,2.863]
[1642485871759,1.24270193,139.74,139.68,10.7328]
[1642485871962,1.24270193,139.74,139.69,2.863]
[1642485872160,1.24270193,139.74,139.69,3.113]
[1642485872360,1.24270193,139.74,139.69,9.373]
[1642485872760,1.24270193,139.74,139.7,10.7328]
[1642485872960,1.24270193,139.74,139.69,9.113]
[1642485873161,1.24270193,139.74,139.69,3.113]
[1642485874564,1.24270193,139.74,139.69,13.8469]
[1642485874962,37.19846684,139.74,139.69,13.8469]
[1642485878865,37.19846684,139.74,139.69,10.9839]
[1642485880168,37.19846684,139.74,139.69,16.9839]
[1642485880668,37.19846684,139.74,139.69,10.9839]
[1642485881169,37.19846684,139.74,139.69,0.25]
[1642485882869,37.19846684,139.74,139.68,13.597]
[1642485883270,36.19846684,139.74,139.68,19.597]
[1642485884169,36.19846684,139.74,139.69,0.25]
[1642485884771,36.19846684,139.74,139.69,10.9842]
[1642485887201,36.19846684,139.74,139.69,0.25]
[1642485888101,0.24270193,139.74,139.69,0.25]
[1642485890408,0.24270193,139.74,139.69,10.9842]
[1642485892911,0.24270193,139.74,139.69,0.25]
[1642485896212,0.24270193,139.74,139.69,10.9842]
[1642485896816,0.24270193,139.74,139.69,16.9842]
[1642485897013,24.5347,139.76,139.69,16.9842]
[1642485897215,24.5347,139.76,139.71,10.7316]
[1642485897413,17.17281869,139.8,139.71,10.7316]
[1642485897614,2.862,139.8,139.72,72.05]
[1642485897816,4.08081869,139.82,139.73,2.862]
[1642485898014,4.08081869,139.82,139.73,33.26361257]
[1642485898212,4.08081869,139.82,139.74,72.05]
[1642485898416,4.08081869,139.82,139.76,10.7253]
[1642485898617,4.08081869,139.88,139.77,71.8]
[1642485898814,4.08081869,139.88,139.77,86.66489281]
[1642485899214,4.08081869,139.88,139.78,1.28489281]
[1642485899414,4.08081869,139.88,139.79,0.25]
[1642485899819,10.08081869,139.88,139.79,0.25]
[1642485900015,4.08081869,139.88,139.8,1.28489281]
[1642485900218,6.0,139.88,139.8,4.14489281]
[1642485900416,2.861,139.89,139.8,20.86849281]
[1642485900617,51.50598989,139.88,139.8,16.7236]
[1642485900816,2.86,139.87,139.8,16.7236]
[1642485901418,2.86,139.87,139.8,10.7236]
[1642485901817,2.86,139.87,139.81,0.25]
[1642485902016,48.36598989,139.88,139.82,10.7249]
[1642485902217,45.50598989,139.88,139.82,10.7249]
[1642485902418,45.50598989,139.88,139.83,0.25]
[1642485903717,45.50598989,139.88,139.83,10.725]
[1642485904118,45.50598989,139.88,139.84,0.25]
[1642485904917,51.00598989,139.88,139.84,0.25]
[1642485906818,45.00598989,139.88,139.84,0.25]
[1642485908820,45.00598989,139.88,139.81,10.9759]
[1642485910531,55.73278989,139.88,139.81,10.9759]
[1642485910726,45.00598989,139.88,139.81,10.9759]
[1642485911525,45.00598989,139.88,139.82,2.86]
[1642485911750,45.00598989,139.88,139.83,0.25]
[1642485913252,45.00598989,139.88,139.81,13.5859]
[1642485913253,45.00598989,139.88,139.82,0.25]
[1642485913652,45.00598989,139.88,139.82,10.9756]
[1642485915657,49.08680858,139.88,139.82,10.9756]
[1642485916758,45.00598989,139.88,139.82,10.7256]
[1642485917359,45.00598989,139.88,139.81,2.86]
[1642485917559,47.86598989,139.88,139.8,10.7265]
[1642485918260,47.86598989,139.88,139.81,10.9759]
[1642485918460,47.86598989,139.88,139.81,10.7259]
[1642485918660,51.94680858,139.88,139.82,0.25]
[1642485923769,49.08680858,139.88,139.82,10.9755]
[1642485923969,49.08680858,139.88,139.82,10.7255]
[1642485925876,49.08680858,139.88,139.8,10.9765]
[1642485926278,59.81360858,139.88,139.8,10.9765]
[1642485926782,49.08680858,139.88,139.8,10.9765]
[1642485927178,49.08680858,139.88,139.81,2.86]
[1642485927378,49.08680858,139.88,139.82,0.25]
[1642485928680,49.08680858,139.88,139.82,10.9757]
[1642485929879,49.08680858,139.88,139.82,10.7257]
[1642485930283,49.08680858,139.88,139.81,2.86]
[1642485930514,120.88680858,139.88,139.79,2.86]
[1642485930718,120.88680858,139.88,139.79,3.11]
[1642485931519,8.15624815,139.87,139.81,10.7265]
[1642485931917,8.15624815,139.87,139.82,0.25]
[1642485932116,120.88680858,139.88,139.81,10.7265]
[1642485932721,49.08680858,139.88,139.81,10.7265]
[1642485933118,49.08680858,139.88,139.82,0.25]
[1642485933320,49.08680858,139.88,139.82,10.9754]
[1642485933717,49.08680858,139.88,139.82,0.25]
[1642485934118,59.81360858,139.88,139.82,0.25]
[1642485934319,59.81360858,139.88,139.8,0.25]
[1642485934519,49.08680858,139.88,139.81,10.7263]
[1642485934918,49.08680858,139.88,139.82,0.25]
[1642485936122,49.08680858,139.88,139.8,0.25]
[1642485936323,49.08680858,139.88,139.82,10.7255]
[1642485936522,49.08680858,139.88,139.83,2.86]
[1642485936721,49.08680858,139.88,139.81,2.86]
[1642485936923,49.08680858,139.88,139.84,0.25]
[1642485937123,45.00598989,139.88,139.84,0.25]
[1642485937527,45.00598989,139.88,139.84,10.9736]
[1642485938229,4.08081869,139.9,139.84,10.9736]
[1642485938429,10.08081869,139.9,139.84,10.9736]
[1642485938631,4.08081869,139.9,139.84,10.9736]
[1642485939028,10.08081869,139.9,139.84,10.9736]
[1642485939234,4.08081869,139.9,139.84,10.9736]
[1642485939430,4.08081869,139.9,139.86,10.7223]
[1642485939730,8.1554851,139.9,139.86,10.7223]
[1642485939931,8.1554851,139.9,139.87,0.25]
[1642485940832,0.03791311,139.91,139.87,0.25]
[1642485941034,0.03791311,139.91,139.87,10.7216]
[1642485941434,0.03791311,139.91,139.88,0.25]
[1642485941637,0.03791311,139.91,139.89,6.0643]
[1642485952067,0.03791311,139.91,139.89,16.7846]
[1642485952270,0.03791311,139.91,139.9,0.25]
[1642485953470,0.03791311,139.91,139.9,1.5352688]
[1642485953670,0.03791311,139.91,139.9,12.2532688]
[1642485953873,0.03791311,139.91,139.9,10.968]
[1642485956876,0.03791311,139.91,139.9,10.718]
[1642485958077,0.03791311,139.91,139.89,6.0643]
[1642485960277,42.34803854,139.91,139.89,6.0643]
[1642485960478,44.38466742,139.91,139.89,6.0643]
[1642485960679,44.38466742,139.91,139.89,10.7199]
[1642485961481,44.38466742,139.91,139.9,6.0643]
[1642485961679,44.38466742,139.91,139.9,3.03219997]
[1642485961881,2.07454199,139.91,139.89,10.7199]
[1642485962080,2.07454199,139.91,139.9,0.25]
[1642485962380,2.07454199,139.91,139.89,10.7199]
[1642485962981,42.81942876,139.91,139.89,16.7842]
[1642485963481,42.81942876,139.91,139.89,10.7199]
[1642485964485,2.03662888,139.9,139.87,10.7211]
[1642485964682,2.03662888,139.9,139.87,10.9711]
[1642485965181,2.03662888,139.9,139.87,10.7211]
[1642485965882,2.03662888,139.9,139.88,6.0643]
[1642485966082,2.03662888,139.9,139.85,13.5815]
[1642485966284,2.03662888,139.9,139.83,25.856]
[1642485966483,2.03662888,139.9,139.84,0.25]
[1642485966484,4.89562888,139.9,139.84,0.25]
[1642485966983,2.03662888,139.89,139.84,0.25]
[1642485967185,38.10219835,139.88,139.84,0.25]
[1642485967582,38.10219835,139.88,139.84,10.7239]
[1642485968783,40.13882723,139.88,139.84,10.7239]
[1642485970687,40.13882723,139.88,139.85,0.25]
[1642485971087,40.13882723,139.88,139.86,6.0643]
[1642485971288,40.13882723,139.88,139.86,3.03219997]
[1642485971487,38.10219835,139.88,139.86,3.03219997]
[1642485971891,38.10219835,139.88,139.85,10.7229]
[1642485972492,40.13882723,139.88,139.85,10.7229]
[1642485973394,40.13882723,139.88,139.83,25.856]
[1642485973592,40.13882723,139.88,139.83,33.7209]
[1642485973992,40.13882723,139.88,139.83,22.997]
[1642485974193,40.13882723,139.88,139.82,2.86]
[1642485974395,2.86,139.87,139.8,25.5464]
[1642485974592,2.86,139.87,139.8,25.7964]
[1642485974994,2.03662888,139.86,139.8,25.7964]
[1642485975194,41.93196423,139.85,139.8,25.7964]
[1642485975694,41.93196423,139.85,139.81,10.7254]
[1642485975894,41.93196423,139.85,139.82,0.25]
[1642485978795,41.93196423,139.85,139.83,6.0643]
[1642485979196,41.93196423,139.85,139.82,0.25]
[1642485980098,41.93196423,139.85,139.83,3.03219997]
[1642485980300,41.93196423,139.85,139.83,6.0643]
[1642485980798,38.0,139.84,139.81,10.7254]
[1642485981000,38.0,139.84,139.77,24.63452025]
[1642485981200,2.861,139.83,139.77,24.63452025]
[1642485981400,35.78350018,139.82,139.77,24.63452025]
[1642485981600,35.78350018,139.82,139.77,1.80942025]
[1642485982003,2.861,139.83,139.77,1.80942025]
[1642485982402,2.861,139.83,139.76,135.8144]
[1642485982602,2.03662888,139.84,139.77,4.1462688]
[1642485983322,2.03662888,139.84,139.78,0.25]
[1642485983523,2.03662888,139.84,139.8,10.726]
[1642485983723,39.35056472,139.86,139.8,10.726]
[1642485983923,39.35056472,139.86,139.81,0.25]
[1642485985126,39.35056472,139.86,139.81,10.976]
[1642485985325,39.35056472,139.86,139.82,0.25]
[1642485986028,2.03662888,139.86,139.82,0.25]
[1642485986226,2.03662888,139.86,139.82,10.9752]
[1642485986427,2.03662888,139.87,139.83,2.86]
[1642485986826,2.03662888,139.87,139.84,0.25]
[1642485987428,2.03662888,139.89,139.84,0.25]
[1642485987627,2.03662888,139.89,139.84,10.9732]
[1642485998344,2.03662888,139.9,139.84,10.9732]
[1642485999645,2.03662888,139.89,139.84,10.9732]
[1642486000945,2.03662888,139.89,139.84,12.25526654]
[1642486001349,2.03662888,139.9,139.84,12.25526654]
[1642486001547,2.03662888,139.9,139.86,10.7206]
[1642486001947,2.03662888,139.9,139.87,0.25]
[1642486003547,2.03662888,139.9,139.88,10.7206]
[1642486004249,2.03662888,139.9,139.89,0.25]
[1642486004650,2.07454199,139.91,139.89,10.9689]
[1642486004851,2.07454199,139.91,139.89,13.8279]
[1642486005052,2.07454199,139.91,139.89,10.9689]
[1642486005852,0.03791311,139.91,139.89,10.9689]
[1642486006753,0.03791311,139.91,139.89,16.9689]
[1642486007955,0.03791311,139.91,139.89,18.25096654]
[1642486008356,0.03791311,139.91,139.89,16.9689]
[1642486008758,0.03791311,139.91,139.89,16.7189]
[1642486011158,6.10231305,139.91,139.89,16.7189]
[1642486011362,6.10231305,139.91,139.9,0.25]
[1642486011560,6.10231305,139.91,139.9,10.9693]
[1642486011760,0.03791311,139.91,139.9,10.7193]
[1642486012363,6.10231305,139.91,139.89,6.0]
[1642486012560,6.10231305,139.91,139.87,6.0]
[1642486012762,6.10231305,139.91,139.88,0.25]
[1642486013364,45.413183,139.91,139.86,45.87066654]
[1642486013563,45.413183,139.91,139.86,2.859]
[1642486014264,6.10231305,139.91,139.86,2.859]
[1642486014463,6.10231305,139.91,139.85,34.5954]
[1642486014962,6.10231305,139.91,139.86,0.25]
[1642486014963,8.13894193,139.91,139.86,0.25]
[1642486015763,53.0222164,139.91,139.85,10.7229]
[1642486015965,50.98558752,139.91,139.84,2.859]
[1642486016263,2.859,139.9,139.84,2.859]
[1642486016462,2.859,139.9,139.82,1.80942025]
[1642486016663,26.5626,139.9,139.82,1.80942025]
[1642486016885,26.5626,139.9,139.81,2.859]
[1642486016886,39.32482888,139.9,139.81,2.859]
[1642486017086,39.32482888,139.9,139.8,12.53552025]
[1642486017286,0.25,139.89,139.8,12.53552025]
[1642486017486,2.86,139.88,139.8,12.53552025]
[1642486017687,41.23608732,139.88,139.8,15.39552025]
[1642486018187,43.2727162,139.88,139.8,13.5861]
[1642486018590,53.9996162,139.88,139.8,13.5861]
[1642486019188,53.9996162,139.88,139.81,0.25]
[1642486019594,53.9996162,139.88,139.8,13.5861]
[1642486019891,53.9996162,139.88,139.81,0.25]
[1642486020296,43.2727162,139.88,139.81,10.976]
[1642486021095,43.2727162,139.88,139.81,10.726]
[1642486021794,43.2727162,139.88,139.82,0.25]
[1642486022194,43.2727162,139.88,139.81,10.726]
[1642486024396,43.2727162,139.88,139.82,0.25]
[1642486024595,43.2727162,139.88,139.82,10.7251]
[1642486027097,43.2727162,139.88,139.82,12.00399041]
[1642486027797,41.23608732,139.88,139.82,10.7251]
[1642486028200,47.23608732,139.88,139.8,16.67451066]
[1642486028396,2.86,139.87,139.8,15.39562025]
[1642486029395,2.86,139.87,139.8,13.5862]
[1642486029596,2.86,139.87,139.8,10.7262]
[1642486030098,29.51062888,139.87,139.8,10.7262]
[1642486030798,29.51062888,139.87,139.79,2.86]
[1642486031199,0.25,139.86,139.79,2.86]
[1642486031401,2.86,139.85,139.79,2.86]
[1642486031599,47.78017867,139.84,139.79,2.86]
[1642486031799,2.86,139.83,139.79,2.86]
[1642486032001,9.826,139.83,139.79,2.86]
[1642486032706,20.5566,139.83,139.79,2.86]
[1642486032906,20.5566,139.83,139.76,1.80942025]
[1642486033107,44.834,139.83,139.76,1.80942025]
[1642486034407,71.8,139.82,139.76,1.80942025]
[1642486034609,47.20745021,139.81,139.76,1.80942025]
[1642486035410,47.20745021,139.81,139.73,6.73936546]
[1642486035411,47.20745021,139.81,139.75,1.80942025]
[1642486036014,70.49545021,139.81,139.75,1.80942025]
[1642486037315,0.25,139.8,139.75,1.80942025]
[1642486037515,2.861,139.79,139.75,1.80942025]
[1642486037716,43.56803253,139.78,139.75,1.80942025]
[1642486037915,51.40603253,139.78,139.75,1.80942025]
[1642486038116,51.40603253,139.78,139.74,1.80942025]
[1642486039121,62.14043253,139.78,139.74,1.80942025]
[1642486039325,71.8,139.77,139.72,1.80942025]
[1642486039520,71.8,139.77,139.69,3.87836546]
[1642486039521,64.0,139.76,139.69,3.87836546]
[1642486039719,46.71221441,139.74,139.69,3.87836546]
[1642486039924,2.862,139.73,139.69,3.87836546]
[1642486040120,3.112,139.73,139.69,3.87836546]
[1642486040320,10.7395,139.72,139.69,3.87836546]
[1642486040520,48.58701904,139.7,139.69,3.87836546]
[1642486040719,48.58701904,139.7,139.65,3.87836546]
[1642486041322,2.863,139.72,139.65,3.87836546]
[1642486041924,2.863,139.72,139.65,9.87836546]
[1642486042121,2.863,139.72,139.65,3.87836546]
[1642486042324,2.863,139.72,139.66,3.113]
[1642486042524,36.9815603,139.78,139.66,3.113]
[1642486042725,36.9815603,139.78,139.67,1.27889041]
[1642486042926,2.862,139.77,139.68,2.862]
[1642486043142,2.862,139.77,139.7,10.7343]
[1642486043342,2.862,139.77,139.7,16.7343]
[1642486043747,2.862,139.77,139.7,6.0]
[1642486043948,0.25,139.76,139.68,2.862]
[1642486044150,13.092,139.77,139.68,6.0]
[1642486044352,13.092,139.77,139.69,1.27889041]
[1642486044550,20.9652,139.77,139.7,2.862]
[1642486045249,20.9652,139.77,139.7,4.14089041]
[1642486045451,20.9652,139.77,139.7,1.27889041]
[1642486045950,10.23,139.77,139.7,12.01369041]
[1642486046151,10.23,139.77,139.7,18.01369041]
[1642486047052,10.23,139.77,139.7,10.7348]
[1642486047252,20.9652,139.77,139.7,10.7348]
[1642486047753,20.9652,139.77,139.7,16.7348]
[1642486047955,20.9652,139.77,139.7,10.7348]
[1642486048352,20.9652,139.77,139.7,12.01369041]
[1642486049354,0.25,139.76,139.71,0.25]
[1642486049553,10.7352,139.77,139.71,0.25]
[1642486049754,2.862,139.78,139.71,10.9841]
[1642486049955,23.847,139.79,139.72,2.862]
[1642486050756,40.03939382,139.78,139.73,0.25]
[1642486050956,40.28939382,139.78,139.72,2.862]
[1642486051360,2.862,139.77,139.72,2.862]
[1642486051759,0.25,139.76,139.72,2.862]
[1642486053663,13.5974,139.77,139.72,2.862]
[1642486053861,13.5974,139.77,139.7,10.7344]
[1642486053862,85.3974,139.77,139.7,10.7344]
[1642486054292,0.25,139.76,139.72,1.27889041]
[1642486054565,0.25,139.76,139.7,0.25]
[1642486055361,0.25,139.76,139.71,1.27889041]
[1642486055761,0.25,139.76,139.7,0.25]
[1642486055962,85.3974,139.77,139.7,0.25]
[1642486056461,0.25,139.76,139.69,10.7358]
[1642486056861,85.3974,139.77,139.7,0.25]
[1642486057062,82.5354,139.77,139.7,3.112]
[1642486057262,10.9861,139.76,139.7,2.862]
[1642486057467,13.5981,139.76,139.71,0.25]
[1642486057665,10.7361,139.76,139.71,0.25]
[1642486058467,39.26893729,139.75,139.7,2.862]
[1642486059068,39.26893729,139.75,139.71,0.25]
[1642486059468,39.26893729,139.75,139.7,2.862]
[1642486059672,39.26893729,139.75,139.69,10.7358]
[1642486059869,39.26893729,139.75,139.7,3.112]
[1642486060070,39.26893729,139.75,139.7,0.25]
[1642486060271,85.3972,139.78,139.7,10.9849]
[1642486060471,82.5352,139.78,139.71,2.862]
[1642486060671,0.25,139.77,139.71,2.862]
[1642486060868,0.25,139.77,139.72,0.25]
[1642486061068,10.7352,139.78,139.72,0.25]
[1642486061369,59.97648377,139.78,139.71,2.862]
[1642486061668,59.97648377,139.78,139.72,0.25]